[Event "IV Copa Marcel Duchamp 2020"]
[Site "Montevideo"]
[Date "2020.02.09"]
[Round "3.26"]
[White "Moreno, Nelson"]
[Black "Brizzi, Milagros Tatiana"]
[Result "0-1"]
[ECO "B13"]
[WhiteElo "1656"]
[BlackElo "2022"]
[Annotator "NA RC"]
[PlyCount "117"]
[EventDate "2020.02.08"]
[EventType "swiss"]
[EventCountry "URU"]
[SourceTitle "playchess.com"]
[Source "ChessBase"]
[SourceQuality "1"]
[TimeControl "5400+30"]

{[%evp 8,117,8,14,25,32767,32767,32767,32767,-29,-18,-29,-36,-28,-34,-78,32767,-30,63,0,15,0,19,0,64,-20,7,15,26,-91,0,-25,-12,-55,-55,-98,-8,-27,5,0,0,-89,-69,-70,3,-154,0,-46,-52,-83,0,-49,-11,-134,-82,-115,-93,-128,-55,-105,-96,-141,-125,-125,-88,-183,-218,32767,-309,-342,-354,32767,-333,-314,-314,-350,-374,32767,32767,32767,32767,-542,-575,-843,-514,-920,-526,-843,-384,-758,-404,-381,-272,-360,-172,-177,32767,32767,32767,32767,32767,-634,-824,32767,32767,32767,32767,32767,32767,32767,-585,-29984]} 1. e4 {[%emt 0:00:36]} c6 {[%emt 0:00:00]} 2. d4 {[%emt 0:00:11]} d5 {[%emt 0:00:00]} 3. exd5 {[%emt 0:00:06]} cxd5 {[%emt 0:00:01]} 4. c4 {[%emt 0:01:27]} Nf6 {[%emt 0:00:23]} 5. Nc3 {[%emt 0:00:07]} Nc6 {[%emt 0:00:10]} 6. Nf3 {[%emt 0:03:46]} Bg4 {[%emt 0:00:50]} 7. Be3 {[%emt 0:01:43]} e6 {[%emt 0:08:24]} 8. Bd3 {[%emt 0:04:58] B13: Caro-Kann: Exchange Variation and Panov-Botvinnik Attack.} Be7 {[%emt 0:01:34]} 9. O-O {[%emt 0:00:08]} O-O {[#]} 10. a3 $146 {[%emt 0:01:53]} ({Predecessor:} 10. Rc1 Rc8 11. cxd5 Nxd5 12. Ne4 e5 13. dxe5 Nxe5 14. Rxc8 Qxc8 15. Be2 Rd8 16. Nd4 Bxe2 17. Qxe2 Nxe3 18. fxe3 {1-0 (34) Balint,V (2274)-Gal,T (2080) Nyiregyhaza 2004}) 10... Rc8 {[%emt 0:06:39]} 11. c5 {[%emt 0:02:09]} (11. cxd5 $11 Nxd5 12. h3) 11... e5 {[%emt 0:01:56]} 12. Be2 {[%emt 0:02:19]} e4 {[%emt 0:23:36]} (12... Bxf3 $15 13. Bxf3 exd4 14. Bxd4 Nxd4 15. Qxd4 Bxc5) 13. Nd2 {[%emt 0:04:39]} Bxe2 {[%emt 0:04:25]} 14. Nxe2 {[%emt 0:01:26]} Ne8 {[%emt 0:02:36]} 15. Qb3 {[%emt 0:01:43]} Rb8 {[%emt 0:01:57]} (15... b6 $11) 16. Nf4 {[%emt 0:00:54]} (16. Bf4 $14) 16... Nc7 {[%emt 0:00:55]} 17. f3 {[%emt 0:00:11]} Bf6 {[%emt 0:04:07]} 18. Ne2 {[%emt 0:10:41]} (18. fxe4 $11 Bxd4 19. Bxd4 Nxd4 20. Qd3 dxe4 21. Nxe4) 18... Ne6 {[%emt 0:03:24]} (18... b6 $17 19. cxb6 Rxb6) 19. Qc3 {[%emt 0:00:13]} exf3 {[%emt 0:03:52]} 20. Rxf3 {[%emt 0:04:36]} b6 {[%emt 0:01:58]} 21. cxb6 {[%emt 0:03:09]} Rxb6 {[%emt 0:02:52]} ({Better is} 21... Qxb6 $17 22. Qd3 Qb5 23. Qxb5 Rxb5) 22. b4 {[%emt 0:00:30]} g6 {[%emt 0:04:47]} 23. Raf1 {[%emt 0:14:58]} Bg7 {[%emt 0:00:07]} 24. Rg3 {[%emt 0:09:13]} (24. Nb3 $11 {keeps the balance.}) 24... Qc8 {[%emt 0:03:41]} 25. Qd3 {[%emt 0:01:09]} Qb8 {[%emt 0:01:09]} (25... Re8 $15) 26. Nc3 {[%emt 0:02:58]} (26. Nb3 $1 $11 {remains equal.}) 26... Qd8 {[%emt 0:02:03]} (26... Ncxd4 $17 27. Bxd4 (27. Nxd5 $2 Rd6 $19) 27... Nxd4) 27. Nf3 {[%emt 0:02:20]} Rb7 {[%emt 0:01:00]} 28. Qa6 {[%emt 0:02:46]} Rb6 {[%emt 0:07:10]} (28... Re7 $17) 29. Qd3 {[%emt 0:00:07]} Rb8 {[%emt 0:03:45]} 30. Rc1 {[%emt 0:04:06]} (30. Na4 $11) 30... Rc8 {[%emt 0:01:21]} 31. Ne2 {[%emt 0:00:22]} Qb6 {[%emt 0:01:20]} 32. Kh1 {[%emt 0:04:40]} (32. Rf1 $15) 32... Rfe8 {[%emt 0:03:09]} ({Better is} 32... Ne7 $17 33. Rd1 Nf5) 33. Rd1 {[%emt 0:03:45]} (33. Rf1 $15) 33... Ne7 {[%emt 0:01:47]} 34. Bg1 {[%emt 0:08:02]} Nf5 {[%emt 0:00:52]} 35. Rh3 {[%emt 0:00:41]} Qd6 {[%emt 0:01:43]} 36. Ne5 {[%emt 0:01:17]} (36. Rf1 $17) 36... Ng5 {[%emt 0:00:55]} 37. Nf4 {[%emt 0:02:18]} Nxh3 {[%emt 0:01:26]} 38. Nxh3 {[%emt 0:00:01]} f6 {[%emt 0:01:34]} 39. g4 {[%emt 0:01:08]} Ne7 {[%emt 0:01:10]} 40. Nf3 {[%emt 0:00:34]} Rc7 {[%emt 0:00:19]} 41. Bf2 {[%emt 0:00:15]} Qd7 {[%emt 0:00:22]} 42. Bg3 {[%emt 0:00:54]} Rc6 {[%emt 0:00:18]} 43. Nf2 {[%emt 0:00:11]} Re6 {[%emt 0:00:16]} 44. g5 $2 {[%emt 0:00:26]} (44. Rc1 {was called for.}) 44... Nf5 {[%emt 0:00:24]} 45. Bf4 {[%emt 0:00:14]} fxg5 {[%emt 0:01:16]} 46. Bxg5 {[%emt 0:00:11]} Qf7 {[%emt 0:00:34]} 47. Ng4 {[%emt 0:00:51]} h6 {[%emt 0:00:44]} (47... Ne3 $142 48. Nfe5 Rxe5 49. Nxe5 Rxe5) 48. Bc1 {[%emt 0:00:59]} (48. Nge5 $142 Bxe5 49. Nxe5 Rxe5 50. dxe5 hxg5 51. Qxd5) 48... Qc7 {[%emt 0:00:29]} 49. Nge5 {[%emt 0:00:48]} Rf8 {[%emt 0:00:36]} ({Much less strong is} 49... Bxe5 50. dxe5 d4 51. Bd2 $19) 50. Rg1 {[%emt 0:00:54]} Ne7 {[%emt 0:00:19]} ({Weaker is} 50... Bxe5 51. Nxe5 g5 52. b5 $19) (50... g5 $142 51. Bb2 Nd6) 51. Bd2 {[%emt 0:00:51]} Ref6 {[%emt 0:00:42]} 52. Nh4 {[%emt 0:00:31]} g5 {[%emt 0:00:28]} 53. Nhg6 {[%emt 0:00:26]} Nxg6 {[%emt 0:00:18]} 54. Nxg6 {[%emt 0:00:07] [#]} Rf2 $1 {[%emt 0:00:31]} 55. Ne5 {[%emt 0:01:08]} Bxe5 {[%emt 0:00:31]} 56. dxe5 {[%emt 0:00:01]} Qxe5 {[%emt 0:00:10]} 57. Qg6+ {[%emt 0:00:02]} Qg7 {[%emt 0:00:12]} 58. Qe6+ {[%emt 0:00:19]} Qf7 59. Qe3 {[%emt 0:02:32]} 0-1

[Event "IV Copa Marcel Duchamp 2020"]
[Site "Montevideo"]
[Date "2020.02.09"]
[Round "3.27"]
[White "Meskanen, Vesa"]
[Black "Cardozo, Camila"]
[Result "1-0"]
[ECO "E06"]
[WhiteElo "2019"]
[BlackElo "1539"]
[Annotator "NA RC"]
[PlyCount "56"]
[EventDate "2020.02.08"]
[EventType "swiss"]
[EventCountry "URU"]
[SourceTitle "playchess.com"]
[Source "ChessBase"]
[SourceQuality "1"]
[TimeControl "5400+30"]

{[%evp 8,56,0,11,32767,32767,32767,32767,32767,32767,32767,32767,32767,-5,32767,-14,0,0,-12,0,64,25,27,19,158,144,207,121,114,34,39,62,32767,30,16,0,142,32767,118,158,194,198,303,306,445,478,480,511,536,506,506]} 1. d4 {[%emt 0:00:00]} d5 {[%emt 0:00:03]} 2. c4 {[%emt 0:00:00]} e6 {[%emt 0:00:24]} 3. Nf3 Nf6 {[%emt 0:00:53]} 4. g3 {[%emt 0:00:05]} Be7 {[%emt 0:00:43]} 5. Bg2 {[%emt 0:00:15]} O-O {[%emt 0:01:01]} 6. O-O {[%emt 0:00:17]} dxc4 7. Qc2 {[%emt 0:03:59]} a6 {[%emt 0:03:24]} 8. Qxc4 {[%emt 0:06:50]} b5 {[%emt 0:01:33]} 9. Qc2 {[%emt 0:00:58]} Bb7 {[%emt 0:00:52]} 10. Bf4 {[%emt 0:15:01]} Nd5 {[%emt 0:04:40]} 11. Bd2 {[%emt 0:01:59]} Nd7 {[%emt 0:05:24] E05: Open Catalan: 5 Nf3 Be7} 12. e4 {[%emt 0:10:04]} N5f6 {[%emt 0:01:52]} 13. e5 {[%emt 0:07:29] [#]} Ne4 $146 {[%emt 0:06:11]} ({Black should try Predecessor:} 13... Nd5 $11 14. a3 c5 15. dxc5 Nxc5 16. Nc3 Rc8 17. Rfd1 h6 18. Rac1 Qb6 19. Nxd5 Bxd5 {0-1 (55) Salem,Z-Jhunjhnuwala,N (2250) Thessaloniki 1984}) 14. Ba5 {[%emt 0:02:33]} Nb6 {[%emt 0:09:54]} 15. b3 {[%emt 0:09:55]} c5 {[%emt 0:45:39] [#]} (15... Ra7 $11) 16. Rd1 $1 {[%emt 0:12:49]} Qc7 {[%emt 0:14:04]} 17. Ne1 {[%emt 0:16:49]} (17. Re1 $18) 17... f5 {[%emt 0:14:34]} 18. f3 {[%emt 0:06:00]} (18. exf6 $1 $16 Nxf6 19. dxc5 Bxc5 20. b4 Bxg2 21. bxc5) 18... Ng5 {[%emt 0:02:02] [#]} 19. Rc1 $1 {[%emt 0:05:12]} Rac8 {[%emt 0:01:46]} 20. dxc5 {[%emt 0:04:16]} Bxc5+ {[%emt 0:04:41] [#]} ({Much worse is} 20... Qxe5 $6 21. Bxb6 f4 22. gxf4 $16 (22. Qc3 Qb8 $16)) 21. Qxc5 $1 {[%emt 0:02:25] Remove Defender} Qxc5+ {[%emt 0:00:18]} (21... Qd7 $1 $11 22. Qe3 (22. Bxb6 Rxc5 23. Bxc5 Rc8 $17) (22. Qxb6 Rxc1 23. Bd2 Rd1 $11) 22... Rxc1 23. Qxc1 Qd4+ 24. Kf1 Qxa1 25. Bxb6 h6) 22. Rxc5 {[%emt 0:00:09]} Rxc5 {[%emt 0:00:13]} 23. Bxb6 {[%emt 0:00:09]} Rxe5 {[%emt 0:01:24]} 24. Nc3 {[%emt 0:03:37]} b4 {[%emt 0:04:19]} (24... f4 {was called for.} 25. gxf4 Rxf4) 25. Nd3 {[%emt 0:03:33]} bxc3 {[%emt 0:00:33]} 26. Nxe5 {[%emt 0:03:47]} Rc8 {[%emt 0:00:29]} 27. Rc1 {[%emt 0:00:55]} Kf8 {[%emt 0:01:02]} 28. h4 $18 {[%emt 0:00:48]} Nf7 {[%emt 0:01:32]} 1-0

[Event "IV Copa Marcel Duchamp 2020"]
[Site "Montevideo"]
[Date "2020.02.09"]
[Round "3.28"]
[White "De Cuadro, Dionisio"]
[Black "Gomez Troccoli, Martin"]
[Result "1-0"]
[ECO "A21"]
[WhiteElo "1650"]
[BlackElo "2004"]
[Annotator "NA RC"]
[PlyCount "69"]
[EventDate "2020.02.08"]
[EventType "swiss"]
[EventCountry "URU"]
[SourceTitle "playchess.com"]
[Source "ChessBase"]
[SourceQuality "1"]
[TimeControl "5400+30"]

{[%evp 29,69,-122,0,-140,-13,32767,32767,0,-3,10,9,7,135,167,137,43,68,74,138,127,146,67,85,89,82,0,95,55,45,55,83,69,214,254,347,385,435,510,1427,1736,29995,29996]} 1. c4 {[%emt 0:01:03]} e5 {[%emt 0:00:00]} 2. Nc3 {[%emt 0:00:12]} g6 {[%emt 0:00:00]} 3. g3 {[%emt 0:00:14]} Bg7 {[%emt 0:00:05]} 4. Bg2 {[%emt 0:00:11]} Ne7 {[%emt 0:00:20]} 5. e3 {[%emt 0:00:11]} d6 {[%emt 0:00:14]} 6. Nge2 {[%emt 0:00:20]} O-O {[%emt 0:00:26]} 7. O-O {[%emt 0:00:21]} Nd7 {[%emt 0:00:13] A21: English Opening: 1...e5 2 Nc3.} 8. d4 {[%emt 0:00:33]} exd4 {[%emt 0:00:17]} 9. exd4 {[%emt 0:00:33]} Nf5 {[%emt 0:00:38] [#]} 10. Nd5 $146 {[%emt 0:02:41]} ({Predecessor:} 10. a4 a5 11. b3 Nb8 12. Bb2 Nc6 13. Nd5 Nfe7 14. Nef4 Nxd5 15. Nxd5 Ne7 16. Nxe7+ Qxe7 {½-½ (90) Zwaig,A (2450)-Szmetan,J (2435) Amsterdam 1977}) 10... Nb6 {[%emt 0:01:02]} 11. Nxb6 {[%emt 0:01:56]} axb6 {[%emt 0:00:05]} 12. Qd3 {[%emt 0:01:01]} Qf6 {[%emt 0:00:36]} 13. Rd1 {[%emt 0:03:37]} Re8 {[%emt 0:00:14]} 14. b3 {[%emt 0:02:25]} Qe7 {[%emt 0:00:46]} 15. Rd2 {[%emt 0:02:17] [#]} (15. Bf3 $11) 15... Bh6 {[%emt 0:01:42]} (15... Nxd4 $1 $17 {[%mdl 512]} 16. Nxd4 Bxd4) 16. Nf4 {[%emt 0:02:53]} (16. Rc2 $11 {remains equal.}) 16... Nxd4 {[%emt 0:07:41]} (16... Bxf4 $1 $17 17. gxf4 Nh4) 17. Bb2 {[%emt 0:05:07]} c5 18. Nd5 {[%emt 0:03:24]} Qd8 {[%emt 0:00:53]} 19. Bxd4 {[%emt 0:03:26]} cxd4 {[%emt 0:00:09]} 20. Re2 {[%emt 0:00:40]} Bg7 {[%emt 0:00:40] [#]} (20... Re5 $11) 21. Rxe8+ $1 {[%emt 0:01:14]} Qxe8 {[%emt 0:00:06]} 22. Nxb6 {[%emt 0:00:36]} (22. Nc7 $16 Bf5 23. Qf3) 22... Bf5 {[%emt 0:00:24]} 23. Qd2 {[%emt 0:02:04]} Ra7 {[%emt 0:09:11]} ({Black should try} 23... Rd8) 24. Re1 {[%emt 0:00:10]} Qd8 {[%emt 0:00:21]} 25. Nd5 {[%emt 0:00:30]} Be6 $11 {[%emt 0:00:47] keeps the balance.} 26. Nf4 {[%emt 0:03:47]} Bg4 {[%emt 0:02:44]} 27. Nd5 {[%emt 0:00:34]} ({Better is} 27. h3 $16 Bf5 28. a4) 27... h5 {[%emt 0:00:39]} 28. h3 {[%emt 0:00:46]} Be6 {[%emt 0:00:21]} 29. a4 {[%emt 0:02:03]} Kh7 {[%emt 0:00:22]} 30. h4 {[%emt 0:00:56]} Bf5 $2 {[%emt 0:01:58]} (30... Bxd5 $14 31. Bxd5 b6) 31. Re7 {[%emt 0:03:29]} Be6 {[%emt 0:01:11] [#]} (31... Qf8 {was called for.} 32. Be4 Bxe4 33. Rxe4 Qc8) 32. Qg5 $1 {[%emt 0:02:38]} Bxd5 {[%emt 0:04:24]} 33. Bxd5 {[%emt 0:01:53]} ({Inferior is} 33. cxd5 Kg8 $11) 33... f6 $18 {[%emt 0:01:15]} (33... Ra5 $142 34. Rxb7 Qxg5 35. hxg5 Kh8 36. Rxf7 d3) 34. Qxf6 $1 {[%emt 0:02:14]} Qh8 {[%emt 0:00:28] [#]} 35. Be4 $1 {[%emt 0:00:42]} 1-0

[Event "IV Copa Marcel Duchamp 2020"]
[Site "Montevideo"]
[Date "2020.02.09"]
[Round "3.29"]
[White "Soto, Nicolas"]
[Black "Kulik, Nicolas"]
[Result "1-0"]
[ECO "B01"]
[WhiteElo "2002"]
[BlackElo "1496"]
[Annotator "NA RC"]
[PlyCount "99"]
[EventDate "2020.02.08"]
[EventType "swiss"]
[EventCountry "URU"]
[SourceTitle "playchess.com"]
[Source "ChessBase"]
[SourceQuality "1"]
[TimeControl "5400+30"]

{[%evp 9,85,51,44,36,38,14,32,8,18,12,31,20,47,-35,-43,-23,32767,-25,0,-43,21,-38,-40,-69,-58,-49,-56,0,-43,-70,-63,-80,-50,-110,-101,-129,-104,-108,-91,-75,-49,-68,-50,-58,-33,-66,-79,-67,-47,-110,-79,-45,-58,-112,0,0,10,12,25,0,42,12,66,40,340,339,431,347,317,345,373,336,370,32767,541,573,555,612]} 1. e4 {[%emt 0:11:15]} d5 {[%emt 0:00:00]} 2. exd5 {[%emt 0:04:45]} Qxd5 {[%emt 0:00:00]} 3. Nc3 {[%emt 0:00:08]} Qd6 {[%emt 0:00:00]} 4. d4 {[%emt 0:01:37]} c6 {[%emt 0:00:00]} 5. Bc4 {[%emt 0:03:38]} Nf6 {[%emt 0:00:12]} 6. h3 {[%emt 0:01:48] B01: Scandinavian Defence.} Bf5 {[%emt 0:00:11]} 7. Nge2 {[%emt 0:01:18]} e6 {[%emt 0:00:20]} 8. Bf4 {[%emt 0:01:10]} Qd8 {[%emt 0:00:29]} 9. Qd2 {[%emt 0:01:49]} Bd6 {[%emt 0:00:24] [#]} 10. O-O-O $146 {[%emt 0:03:56]} ({Predecessor:} 10. Bb3 Qc7 11. Bxd6 Qxd6 12. Nf4 h6 13. g4 Bh7 14. O-O-O Nbd7 15. Rhg1 g5 16. Nfe2 {½-½ (31) Nemcova,K (1659)-Vavrinkova,E (1488) Kouty nad Desnou 2014}) 10... b5 {[%emt 0:02:01]} 11. Bd3 {[%emt 0:06:26]} ({Better is} 11. d5 $14 Bc5 12. Bd3) 11... Bxd3 {[%emt 0:00:31]} 12. Qxd3 {[%emt 0:01:32]} O-O {[%emt 0:01:34]} 13. Bg5 {[%emt 0:02:08]} Be7 {[%emt 0:01:06]} 14. Kb1 {[%emt 0:05:22]} (14. Bxf6 $5 Bxf6 15. Ne4 $11) 14... a5 {[%emt 0:01:41]} 15. Qf3 {[%emt 0:03:54]} (15. Bxf6 $5 Bxf6 16. Ne4 $11) 15... Nd5 {[%emt 0:01:08]} 16. Bxe7 {[%emt 0:00:49]} Qxe7 {[%emt 0:01:59]} 17. Rhe1 {[%emt 0:00:23]} Nd7 {[%emt 0:00:41]} 18. Nxd5 {[%emt 0:02:45]} cxd5 {[%emt 0:00:53]} 19. Nf4 {[%emt 0:04:50]} ({White should try} 19. Nc3 $1 $11) 19... Qf6 {[%emt 0:03:03]} 20. Qg3 {[%emt 0:00:43]} Rac8 {[%emt 0:01:02]} 21. Re3 {[%emt 0:10:35]} Rc4 {[%emt 0:02:49]} 22. Red3 {[%emt 0:00:35]} Rfc8 {[%emt 0:00:52]} 23. R1d2 {[%emt 0:00:28]} Nf8 {[%emt 0:01:35]} 24. Nh5 {[%emt 0:03:36]} Qg6 {[%emt 0:00:37]} 25. Qxg6 {[%emt 0:03:07]} Nxg6 {[%emt 0:00:44]} 26. Rg3 {[%emt 0:00:10]} f6 {[%emt 0:02:28]} 27. b3 {[%emt 0:02:46]} R4c7 {[%emt 0:03:49]} 28. Kb2 {[%emt 0:07:53]} a4 {[%emt 0:06:15]} 29. c3 {[%emt 0:02:50]} (29. a3 $15) 29... Kf8 {[%emt 0:01:46]} 30. Re3 {[%emt 0:01:00]} Kf7 {[%emt 0:01:42]} 31. g3 {[%emt 0:01:52]} Nf8 {[%emt 0:07:03]} (31... axb3 $17 32. axb3 Ra7) 32. Nf4 {[%emt 0:00:36]} Rc6 {[%emt 0:01:00]} 33. Rde2 {[%emt 0:02:03]} R8c7 {[%emt 0:09:39]} 34. h4 {[%emt 0:00:15]} Rc8 {[%emt 0:00:51]} 35. Nd3 {[%emt 0:04:43]} Nd7 {[%emt 0:02:08]} 36. Nb4 {[%emt 0:00:32]} R6c7 $2 {[%emt 0:00:31]} (36... Rd6 $1 $14) 37. Rxe6 {[%emt 0:01:07]} Ne5 {[%emt 0:11:14]} 38. Rd6 {[%emt 0:00:28]} ({Not} 38. dxe5 Kxe6 39. exf6+ Kd6 $14) 38... Nf3 {[%emt 0:04:27]} 39. Nxd5 {[%emt 0:00:48]} Ra7 {[%emt 0:00:55]} 40. b4 {[%emt 0:01:14]} a3+ {[%emt 0:01:03]} 41. Kb3 {[%emt 0:00:41]} h5 {[%emt 0:01:20]} (41... Rb8 {is a better defense.} 42. Kc2 Ng1) 42. Rb6 {[%emt 0:00:22]} Re8 $18 {[%emt 0:03:16]} 43. Rxe8 {[%emt 0:00:26]} Kxe8 {[%emt 0:00:16]} 44. Rxb5 {[%emt 0:00:33]} Nd2+ {[%emt 0:00:47]} 45. Kc2 {[%emt 0:00:10]} Nc4 {[%emt 0:00:17]} 46. Ne3 {[%emt 0:00:53]} Re7 {[%emt 0:00:53]} 47. Nxc4 {[%emt 0:00:43]} Re2+ {[%emt 0:00:09]} 48. Kb3 {[%emt 0:00:11]} Rb2+ {[%emt 0:00:19]} 49. Nxb2 {[%emt 0:00:14]} axb2 {[%emt 0:00:05]} 50. Kxb2 {[%emt 0:00:03]} 1-0

[Event "IV Copa Marcel Duchamp 2020"]
[Site "Montevideo"]
[Date "2020.02.09"]
[Round "3.30"]
[White "Silvera, Pilar"]
[Black "Gaye, Gustavo"]
[Result "0-1"]
[ECO "B27"]
[WhiteElo "1356"]
[BlackElo "2001"]
[Annotator "NA RC"]
[PlyCount "60"]
[EventDate "2020.02.08"]
[EventType "swiss"]
[EventCountry "URU"]
[SourceTitle "playchess.com"]
[Source "ChessBase"]
[SourceQuality "1"]
[TimeControl "5400+30"]

{[%evp 24,60,-52,-67,32767,0,0,-32,26,-28,-34,-33,-41,-195,-199,32767,32767,32767,32767,32767,32767,-209,-197,-196,-168,-180,-175,-210,-206,-242,-231,-230,-207,-204,-201,-193,-204,-187,-204]} 1. e4 {[%emt 0:11:01]} c5 {[%emt 0:00:00]} 2. Nf3 {[%emt 0:00:41]} g6 {[%emt 0:00:00]} 3. d4 {[%emt 0:00:22]} cxd4 {[%emt 0:00:00]} 4. Nxd4 {[%emt 0:00:08]} Nc6 {[%emt 0:00:08]} 5. Be3 {[%emt 0:00:08]} Nf6 {[%emt 0:00:18]} 6. Nc3 {[%emt 0:00:08]} Bg7 {[%emt 0:00:07]} 7. f3 {[%emt 0:00:09]} O-O {[%emt 0:00:07]} 8. Qd2 {[%emt 0:01:34]} d5 {[%emt 0:04:30]} 9. O-O-O {[%emt 0:00:09]} dxe4 {[%emt 0:00:57]} 10. Nxc6 {[%emt 0:00:18]} Qxd2+ {[%emt 0:00:43]} 11. Rxd2 {[%emt 0:00:09]} bxc6 {[%emt 0:00:08]} 12. Nxe4 {[%emt 0:00:09]} Nd5 {[%emt 0:00:24] B34: Sicilian: Accelerated Dragon with 5 Nc3: sidelines.} 13. Bc5 {[%emt 0:00:32]} Re8 {[%emt 0:19:48] [#]} 14. Rd1 $146 {[%emt 0:06:08]} ({Predecessor:} 14. c4 Nc7 15. Be3 a5 16. Be2 Ne6 17. h4 f5 18. Ng5 f4 19. Bf2 Nxg5 20. hxg5 {½-½ (87) Khatibi,M (2172)-Mahjoob,M (2381) Rasht 2015}) 14... Rb8 {[%emt 0:04:33]} 15. c3 {[%emt 0:28:14]} Bf5 {[%emt 0:04:25]} (15... Be6 $15) 16. g3 {[%emt 0:14:42]} ({White should play} 16. g4 Bxe4 17. fxe4 Bh6+ 18. Kc2) 16... Bh6+ {[%emt 0:03:49]} 17. Kc2 {[%emt 0:00:08]} Be3 {[%emt 0:14:14]} 18. Bd3 $2 {[%emt 0:04:42]} (18. Ba3 $15) 18... Bxc5 {[%emt 0:00:39]} 19. Nxc5 {[%emt 0:01:37]} Ne3+ {[%emt 0:00:05]} 20. Kc1 {[%emt 0:00:06]} Nxd1 {[%emt 0:00:24]} 21. Rxd1 {[%emt 0:00:06]} Bxd3 {[%emt 0:00:22]} 22. Rxd3 {[%emt 0:00:09]} Red8 {[%emt 0:01:17]} 23. Re3 {[%emt 0:02:15]} e6 {[%emt 0:00:29]} 24. f4 {[%emt 0:03:19]} Rd5 {[%emt 0:01:21]} 25. Nb3 {[%emt 0:00:15]} Rbd8 {[%emt 0:00:39]} 26. Re1 {[%emt 0:00:42]} Kg7 {[%emt 0:01:50]} 27. Kc2 {[%emt 0:00:35]} Kf6 {[%emt 0:01:20]} 28. Re2 {[%emt 0:04:46]} h5 {[%emt 0:01:06]} 29. Nd4 {[%emt 0:01:10]} Rc8 {[%emt 0:04:07]} 30. Nf3 {[%emt 0:00:32]} Rc7 $19 {[%emt 0:04:28]} 0-1

[Event "IV Copa Marcel Duchamp 2020"]
[Site "Montevideo"]
[Date "2020.02.09"]
[Round "3.31"]
[White "Aguilera, Angel"]
[Black "Montanu, Dan-Vladimir"]
[Result "0-1"]
[ECO "A06"]
[WhiteElo "1196"]
[BlackElo "1983"]
[Annotator "NA RC"]
[PlyCount "94"]
[EventDate "2020.02.08"]
[EventType "swiss"]
[EventCountry "URU"]
[SourceTitle "playchess.com"]
[Source "ChessBase"]
[SourceQuality "1"]
[TimeControl "5400+30"]

{[%evp 8,83,-4,32767,32767,32767,32767,32767,32767,32767,32767,32767,-33,-58,-66,-70,-53,-83,-66,-54,-48,-71,32767,32767,32767,32767,-58,-72,-72,-69,-62,-62,-59,-59,-64,-64,-59,-56,-57,-67,-64,-70,-71,-76,-78,-72,-67,-87,-56,-50,0,-139,-124,-141,-75,-88,-92,-99,-70,-42,-39,-43,-7,-67,-23,-59,-72,-109,-43,-53,0,-172,-83,-367,-468,-483,-544,-458]} 1. Nf3 {[%emt 0:00:00]} d5 {[%emt 0:00:00]} 2. g3 {[%emt 0:00:14]} Nf6 {[%emt 0:00:18]} 3. c3 {[%emt 0:00:39]} c5 {[%emt 0:00:32]} 4. Bg2 {[%emt 0:00:13]} Nc6 {[%emt 0:00:50]} 5. O-O {[%emt 0:01:06]} e5 {[%emt 0:01:15]} 6. d3 {[%emt 0:00:44] A07: Réti Opening: New York and Capablanca Systems.} h6 {[%emt 0:00:54] [#]} 7. b3 $146 {[%emt 0:01:22]} ({Predecessor:} 7. a3 Be6 8. b4 e4 9. Nfd2 exd3 10. exd3 Bd6 11. Nb3 c4 12. dxc4 dxc4 13. Nd4 Nxd4 14. cxd4 O-O 15. Bxb7 Rb8 16. Bg2 a5 17. bxa5 Qxa5 18. Bd2 Qb6 19. Nc3 Qxd4 20. Bf4 {½-½ (20) Telljohann,S (2391)-Khenkin,I (2675) Frankfurt 2012}) 7... Bd6 {[%emt 0:02:04]} 8. Nbd2 {[%emt 0:01:00]} Be6 {[%emt 0:03:26]} 9. Bb2 {[%emt 0:04:38]} O-O {[%emt 0:04:27]} 10. Qc2 {[%emt 0:01:14]} Rc8 {[%emt 0:00:32]} 11. Rfe1 {[%emt 0:00:45]} Qd7 {[%emt 0:00:58]} 12. Rad1 {[%emt 0:01:20]} b5 {[%emt 0:04:01]} 13. a3 {[%emt 0:01:56]} a5 {[%emt 0:00:22]} 14. e4 {[%emt 0:00:45]} d4 {[%emt 0:01:51]} 15. c4 {[%emt 0:01:56]} bxc4 {[%emt 0:00:35]} 16. bxc4 {[%emt 0:01:00]} Qa7 {[%emt 0:08:06]} 17. Rb1 {[%emt 0:05:08]} a4 {[%emt 0:01:50]} 18. Ba1 {[%emt 0:00:43]} Rb8 {[%emt 0:02:56]} 19. Rxb8 {[%emt 0:05:16]} Rxb8 {[%emt 0:00:18]} 20. Rb1 {[%emt 0:00:23]} Bd7 {[%emt 0:01:10]} 21. Rxb8+ {[%emt 0:01:06]} Bxb8 {[%emt 0:00:47]} 22. Bb2 {[%emt 0:03:29]} Bc7 {[%emt 0:03:54]} 23. h3 {[%emt 0:03:22]} Ne8 {[%emt 0:08:54]} 24. Kh2 {[%emt 0:06:18]} Qb6 {[%emt 0:01:30]} 25. Ba1 {[%emt 0:01:07]} Na5 {[%emt 0:02:43]} 26. Bb2 {[%emt 0:07:44]} f6 {[%emt 0:06:10]} 27. h4 {[%emt 0:00:26]} Nd6 {[%emt 0:00:42]} 28. Bh3 {[%emt 0:00:43]} Qc6 {[%emt 0:01:10]} (28... Be8 $15) 29. g4 {[%emt 0:04:43]} (29. Bxd7 $11 {remains equal.} Qxd7 30. Kg2) 29... Nf7 {[%emt 0:01:55]} 30. h5 {[%emt 0:02:24]} Nb7 {[%emt 0:03:51]} 31. Nh4 {[%emt 0:00:41]} Nbd8 {[%emt 0:01:45]} 32. Ng6 {[%emt 0:00:30]} Bd6 {[%emt 0:01:21]} 33. Nf3 {[%emt 0:00:39]} Ne6 {[%emt 0:00:37]} 34. Nfh4 {[%emt 0:02:42]} Neg5 {[%emt 0:02:30]} 35. Qd1 {[%emt 0:03:06]} Qb6 {[%emt 0:03:17]} 36. Qe2 {[%emt 0:00:31]} Qb3 {[%emt 0:00:35]} 37. Kg3 {[%emt 0:02:47]} (37. Nf5 $11) 37... Bc7 {[%emt 0:08:47]} 38. Ne7+ {[%emt 0:01:22]} Kh7 {[%emt 0:00:41]} 39. Nd5 $2 {[%emt 0:10:27]} (39. Nhg6 $11 {and White has nothing to worry.} Qb8 40. Nd5) 39... Ba5 {[%emt 0:00:59]} (39... Be6 $19 {and Black stays clearly on top.} 40. Nxc7 Bxc4) 40. Nf3 $2 {[%emt 0:05:37]} (40. Ng6 $15) 40... Bc3 {[%emt 0:04:28]} 41. Bc1 {[%emt 0:01:22]} Nxh3 {[%emt 0:03:43]} 42. Kxh3 $19 {[%emt 0:01:13]} Qb1 {[%emt 0:02:00]} 43. Qd1 {[%emt 0:01:37]} Bb2 {[%emt 0:00:37]} 44. Nd2 {[%emt 0:01:48]} Qxc1 {[%emt 0:00:22]} 45. Qxc1 {[%emt 0:00:27]} Bxc1 {[%emt 0:00:07]} 46. Nb1 {[%emt 0:00:47]} Ng5+ {[%emt 0:00:43]} 47. Kg2 {[%emt 0:00:25]} Bxg4 {[%emt 0:00:28]} 0-1